[Event "Int SVK-ch Open 2020"]
[Site "Drienica"]
[Date "2020.08.09"]
[Round "3.14"]
[White "Geffert, Peter"]
[Black "Lehocz, Jozsef Jr."]
[Result "1/2-1/2"]
[ECO "B56"]
[WhiteElo "1857"]
[BlackElo "1534"]
[Annotator "NA"]
[PlyCount "137"]
[EventDate "2020.08.07"]
[EventType "swiss"]
[EventCountry "SVK"]
[SourceTitle "playchess.com"]
[Source "ChessBase"]
[SourceQuality "1"]
[TimeControl "40/5400+30:1800+30"]

{[%evp 19,130,20,32767,32767,32767,32767,32767,32767,32767,32767,32767,32767,32767,32767,32767,32767,32767,32767,32767,32767,32767,32767,32767,32767,32767,32767,32767,32767,32767,32767,32767,32767,32767,32767,104,32767,32767,32767,32767,32767,32767,32767,129,116,139,118,32767,117,32767,32767,32767,32767,32767,112,32767,0,32767,0,100,85,92,0,75,69,73,72,83,62,64,65,55,57,54,43,32767,32767,32767,0,7,0,8,0,0,0,0,0,0,0,25,29,35,8,25,29,35,33,33,34,35,3,13,0,8,0,0,0,0,0,0,0,0,0,0]} 1. e4 {[%emt 0:00:00]} c5 {[%emt 0:00:00]} 2. Nf3 {[%emt 0:00:00]} d6 {[%emt 0:01:21]} 3. d4 {[%emt 0:00:00]} cxd4 {[%emt 0:00:01]} 4. Nxd4 {[%emt 0:00:00]} Nf6 {[%emt 0:00:19]} 5. Nc3 {[%emt 0:00:00]} Nc6 {[%emt 0:00:08]} 6. Be3 {[%emt 0:02:37]} Ng4 {[%emt 0:00:25]} 7. Nxc6 {[%emt 0:03:50] B56: Classical Sicilian: Unusual Lines.} Nxe3 {[%emt 0:02:03]} 8. Nxd8 {[%emt 0:01:58]} Nxd1 {[%emt 0:00:10]} 9. Rxd1 {[%emt 0:00:37]} Kxd8 {[%emt 0:00:20]} 10. e5 {[%emt 0:01:00]} Bf5 {[%emt 0:07:02]} 11. Bd3 {[%emt 0:01:11]} Bxd3 {[%emt 0:05:34]} 12. Rxd3 {[%emt 0:00:07]} Rc8 {[%emt 0:01:43] [#]} 13. O-O $146 {[%emt 0:04:47]} ({Predecessor:} 13. exd6 exd6 14. Kd2 Kd7 15. Rf3 f6 16. Re1 Rc5 17. Rfe3 Re5 18. f4 Rxe3 19. Rxe3 {½-½ (28) Garaeva,G-Sudakova,I (2213) St Petersburg 2000}) 13... Kc7 {[%emt 0:17:16]} 14. exd6+ {[%emt 0:02:15]} exd6 {[%emt 0:00:40]} 15. Rfd1 {[%emt 0:00:20]} a6 {[%emt 0:04:33]} 16. Ne4 {[%emt 0:08:43]} Rd8 {[%emt 0:00:30]} 17. Ng5 {[%emt 0:03:07]} Rd7 {[%emt 0:00:41]} 18. Rc3+ {[%emt 0:01:56]} Kb8 {[%emt 0:00:52]} 19. Rf3 {[%emt 0:00:15]} f6 {[%emt 0:04:35]} 20. Ne6 {[%emt 0:01:58]} Re7 {[%emt 0:05:12]} 21. Re3 {[%emt 0:07:18]} g6 {[%emt 0:01:45]} 22. Rxd6 {[%emt 0:11:15]} Bh6 {[%emt 0:00:38]} 23. Re2 {[%emt 0:00:10]} Rhe8 {[%emt 0:00:25]} 24. Kf1 {[%emt 0:01:10]} Bc1 {[%emt 0:00:26]} 25. b3 {[%emt 0:00:21]} Kc8 {[%emt 0:04:53]} 26. Nd4 {[%emt 0:02:47]} Bb2 {[%emt 0:04:08]} 27. Rxe7 {[%emt 0:04:16]} Rxe7 {[%emt 0:00:05]} 28. Nf3 {[%emt 0:00:41]} g5 {[%emt 0:01:13]} 29. Rd3 {[%emt 0:04:56]} Rc7 {[%emt 0:00:55]} 30. c4 {[%emt 0:00:22]} g4 {[%emt 0:00:31]} 31. Nd2 {[%emt 0:03:39]} f5 {[%emt 0:07:55]} 32. h3 {[%emt 0:03:47]} Re7 {[%emt 0:01:59]} 33. hxg4 {[%emt 0:01:36]} fxg4 {[%emt 0:00:06]} 34. Re3 {[%emt 0:00:10]} Rd7 {[%emt 0:02:32]} 35. Ke2 {[%emt 0:03:04]} Bc1 {[%emt 0:09:46]} 36. Rd3 {[%emt 0:02:57]} Re7+ {[%emt 0:03:16]} 37. Re3 {[%emt 0:02:11]} Rf7 {[%emt 0:01:21]} 38. Rd3 {[%emt 0:02:58]} (38. Ne4 $16 Rf4 39. Nd6+ Kc7 40. Rd3) 38... Re7+ {[%emt 0:00:10] [#]} 39. Kd1 $1 {[%emt 0:00:14]} Ba3 {[%emt 0:01:25]} 40. Re3 {[%emt 0:00:40]} ({White should play} 40. Nf1 $16) 40... Rf7 {[%emt 0:00:27]} (40... Rxe3 $11 41. fxe3 Kd7) 41. f3 {[%emt 0:31:18]} gxf3 {[%emt 0:30:33]} 42. Rxf3 {[%emt 0:01:58]} Rg7 {[%emt 0:00:14]} 43. Rf2 {[%emt 0:01:28]} Bc5 {[%emt 0:00:03]} 44. Re2 {[%emt 0:00:14]} Kc7 {[%emt 0:00:48]} 45. Ne4 {[%emt 0:02:01]} Kc6 {[%emt 0:02:23]} 46. Nxc5 {[%emt 0:03:56]} Kxc5 {[%emt 0:00:01]} 47. a3 {[%emt 0:01:27]} a5 {[%emt 0:00:23]} 48. Re5+ {[%emt 0:04:15]} Kb6 {[%emt 0:02:38]} 49. Re2 {[%emt 0:07:54]} Kc5 {[%emt 0:00:13]} 50. Re5+ {[%emt 0:00:00]} Kb6 {[%emt 0:00:00]} 51. Rb5+ {[%emt 0:00:00]} Ka6 $1 {[%emt 0:00:00]} 52. Rh5 {[%emt 0:00:00]} Rxg2 {[%emt 0:00:00]} 53. Rxh7 {[%emt 0:00:00]} Rb2 {[%emt 0:00:00]} 54. Rh3 {[%emt 0:00:00]} Ra2 {[%emt 0:00:00]} 55. Kc1 {[%emt 0:00:00]} Kb6 {[%emt 0:00:00]} 56. Rd3 {[%emt 0:00:00]} a4 {[%emt 0:00:00]} 57. b4 {[%emt 0:00:00]} Kc6 {[%emt 0:00:00]} 58. Kb1 {[%emt 0:00:00]} Rh2 {[%emt 0:00:00]} 59. Rd5 {[%emt 0:00:00]} b6 {[%emt 0:00:00]} 60. Rd4 {[%emt 0:00:00]} Rg2 {[%emt 0:00:00]} 61. Rd5 {[%emt 0:00:00]} Rg4 {[%emt 0:00:00]} 62. b5+ {[%emt 0:00:00]} Kc7 {[%emt 0:00:00]} 63. c5 {[%emt 0:00:00]} bxc5 {[%emt 0:00:00]} 64. Rxc5+ {[%emt 0:00:00]} Kb6 {[%emt 0:00:00]} 65. Rf5 $11 {[%emt 0:00:00]} Rg3 {[%emt 0:00:00]} 66. Ka2 {[%emt 0:00:00]} Rb3 {[%emt 0:00:00]} 67. Re5 {[%emt 0:00:00]} Rxb5 {[%emt 0:00:00]} 68. Rxb5+ {[%emt 0:00:00]} Kxb5 {[%emt 0:00:00]} 69. Kb2 {[%emt 0:00:00]} 1/2-1/2

[Event "Int SVK-ch Open 2020"]
[Site "Drienica"]
[Date "2020.08.09"]
[Round "3.15"]
[White "Magda, Juraj"]
[Black "Tomanek, Rafael"]
[Result "0-1"]
[ECO "B17"]
[WhiteElo "1261"]
[BlackElo "1835"]
[Annotator "NA RC"]
[PlyCount "94"]
[EventDate "2020.08.07"]
[EventType "swiss"]
[EventCountry "SVK"]
[SourceTitle "playchess.com"]
[Source "ChessBase"]
[SourceQuality "1"]
[TimeControl "40/5400+30:1800+30"]

{[%evp 14,94,31,32767,32767,32767,32767,32767,32767,32767,32767,32767,-22,32767,32767,32767,32767,32767,32767,32767,32767,32767,32767,32767,32767,32767,32767,32767,32767,32767,32767,32767,32767,32767,32767,32767,32767,32767,-112,32767,-125,32767,32767,32767,32767,-88,-100,-94,-93,-152,-147,-199,-205,-225,-191,32767,-222,-299,-316,-360,-410,-398,-208,-520,-285,-242,-274,-680,-402,-836,-570,-560,-756,-1702,-5065,-11583,-5335,-5716,-29976,-29987,-29988,-29988,-29989]} 1. e4 {[%emt 0:00:00]} c6 {[%emt 0:00:00]} 2. d4 {[%emt 0:00:00]} d5 {[%emt 0:00:00]} 3. Nc3 {[%emt 0:01:03]} dxe4 {[%emt 0:00:00]} 4. Nxe4 {[%emt 0:00:19]} Nd7 {[%emt 0:00:19]} 5. Nf3 {[%emt 0:00:58]} Ngf6 {[%emt 0:00:10]} 6. Bd3 {[%emt 0:02:03]} Nxe4 {[%emt 0:00:29]} 7. Bxe4 {[%emt 0:00:17]} Nf6 {[%emt 0:00:13]} 8. Bd3 {[%emt 0:01:39]} Bg4 {[%emt 0:00:30]} 9. c3 {[%emt 0:00:22] 9.h3 is not played anymore.} e6 {[%emt 0:00:33]} 10. Bg5 {[%emt 0:01:44] B17: Caro-Kann: Modern Line (4...Nd7).} Qc7 {[%emt 0:05:25]} 11. Bxf6 {[%emt 0:04:25]} gxf6 {[%emt 0:00:20] [#]} 12. h3 $146 {[%emt 0:00:29]} ({Predecessor:} 12. Qe2 Bh6 13. Qe4 Qf4 14. Qxf4 Bxf4 15. Nd2 e5 16. Nb3 O-O-O 17. h3 Be6 18. Rd1 {0-1 (53) Garcia,D (1942)-Garcia,H (2059) Santo Domingo 2010}) 12... Bh5 {[%emt 0:01:42]} 13. g4 {[%emt 0:03:10]} Bg6 {[%emt 0:00:33]} 14. Bxg6 {[%emt 0:00:45]} hxg6 {[%emt 0:00:38]} 15. Qd3 {[%emt 0:05:09]} Bh6 {[%emt 0:13:49]} 16. Nd2 {[%emt 0:05:57]} O-O-O {[%emt 0:02:20]} 17. Qc2 {[%emt 0:10:10]} e5 {[%emt 0:04:45]} 18. O-O-O {[%emt 0:01:12]} exd4 {[%emt 0:05:01]} 19. Kb1 {[%emt 0:06:08]} dxc3 {[%emt 0:05:27]} 20. Qxc3 {[%emt 0:00:57]} Bxd2 {[%emt 0:05:22]} 21. Rxd2 {[%emt 0:01:12]} Qf4 {[%emt 0:00:46]} 22. Rc2 {[%emt 0:12:53]} Rd4 {[%emt 0:05:16]} 23. Qc5 {[%emt 0:03:09]} Rhd8 {[%emt 0:08:38]} 24. Rhc1 {[%emt 0:03:34]} Kb8 {[%emt 0:03:00]} 25. Rc3 {[%emt 0:07:06]} Rd1 {[%emt 0:05:30]} 26. a3 {[%emt 0:03:28]} Qe4+ {[%emt 0:03:44]} 27. Ka2 {[%emt 0:00:32]} Rxc1 {[%emt 0:00:48]} 28. Rxc1 {[%emt 0:00:26]} Qd5+ {[%emt 0:01:24]} 29. Qxd5 {[%emt 0:00:51]} Rxd5 {[%emt 0:00:29]} 30. Rh1 {[%emt 0:03:03]} f5 {[%emt 0:12:40]} 31. g5 {[%emt 0:01:04]} Rd2 {[%emt 0:01:56]} 32. Rh2 {[%emt 0:01:02]} Kc7 {[%emt 0:03:30]} 33. h4 {[%emt 0:00:21]} Kd6 {[%emt 0:00:42]} 34. h5 {[%emt 0:00:12]} gxh5 {[%emt 0:00:32]} 35. Rxh5 {[%emt 0:00:09]} Rxf2 {[%emt 0:01:22]} 36. Rh7 {[%emt 0:00:34]} Ke6 {[%emt 0:03:18]} 37. Rh6+ {[%emt 0:01:52]} Ke7 {[%emt 0:01:34]} (37... Ke5 $142 38. Rf6 Rg2 39. Rxf7 Rxg5) 38. g6 $2 {[%emt 0:04:55]} (38. Rf6) 38... Rg2 {[%emt 0:01:35]} 39. gxf7 {[%emt 0:00:18]} Kxf7 {[%emt 0:00:02]} 40. Rh7+ {[%emt 0:00:59]} (40. Kb3 $142 Kg7 41. Rd6) 40... Rg7 {[%emt 0:00:28]} 41. Rh5 {[%emt 0:30:10]} (41. Rh6 $142 Rg6 42. Rh2) 41... Ke6 {[%emt 0:30:16]} 42. Rh6+ {[%emt 0:00:11]} Ke5 {[%emt 0:01:36]} 43. Rh1 {[%emt 0:00:38]} f4 {[%emt 0:00:25]} 44. Re1+ {[%emt 0:00:32]} Kd4 {[%emt 0:00:29]} 45. Kb1 {[%emt 0:01:49]} f3 {[%emt 0:00:20]} 46. Re6 {[%emt 0:01:07]} f2 {[%emt 0:01:22]} 47. Rf6 {[%emt 0:00:06]} Rg1+ {[%emt 0:00:12]} 0-1

[Event "Int SVK-ch Open 2020"]
[Site "Drienica"]
[Date "2020.08.09"]
[Round "3.16"]
[White "Buran, Jaroslav"]
[Black "Walterova, Ema"]
[Result "1/2-1/2"]
[ECO "D35"]
[WhiteElo "2098"]
[BlackElo "1790"]
[Annotator "NA"]
[PlyCount "45"]
[EventDate "2020.08.07"]
[EventType "swiss"]
[EventCountry "SVK"]
[SourceTitle "playchess.com"]
[Source "ChessBase"]
[SourceQuality "1"]
[TimeControl "40/5400+30:1800+30"]

1. Nf3 {[%emt 0:00:00]} d5 {[%emt 0:00:00]} 2. d4 {[%emt 0:00:20]} Nf6 {[%emt 0:00:13]} 3. c4 {[%emt 0:00:38]} e6 {[%emt 0:01:08]} 4. Nc3 {[%emt 0:00:14]} Nbd7 {[%emt 0:01:17]} 5. cxd5 {[%emt 0:01:27]} exd5 {[%emt 0:00:42]} 6. Bf4 {[%emt 0:01:24]} c6 {[%emt 0:05:23]} 7. e3 {[%emt 0:00:36]} Be7 $11 {[%emt 0:00:50]} 8. Qc2 {[%emt 0:01:02]} Nh5 {[%emt 0:17:36]} 9. Bg3 {[%emt 0:10:08]} g6 {[%emt 0:10:00]} 10. Bd3 {[%emt 0:03:09]} Nb6 {[%emt 0:02:28]} 11. O-O-O {[%emt 0:03:55]} Nxg3 {[%emt 0:06:14]} 12. hxg3 {[%emt 0:00:19]} Bg4 {[%emt 0:01:05]} 13. Rde1 {[%emt 0:03:18]} Bxf3 {[%emt 0:03:54]} 14. gxf3 {[%emt 0:00:46]} Qd7 {[%emt 0:01:01]} 15. e4 {[%emt 0:06:28]} dxe4 {[%emt 0:05:50]} 16. Nxe4 {[%emt 0:00:37]} O-O-O {[%emt 0:01:22]} 17. Nc5 {[%emt 0:02:40]} Bxc5 {[%emt 0:04:21]} 18. dxc5 {[%emt 0:02:42]} Qxd3 {[%emt 0:00:38]} 19. cxb6 {[%emt 0:00:14]} Qxc2+ {[%emt 0:01:48]} 20. Kxc2 {[%emt 0:00:30]} axb6 {[%emt 0:00:17]} 21. Rh6 {[%emt 0:00:00]} Rde8 {[%emt 0:12:45]} 22. Rxe8+ {[%emt 0:06:02]} Rxe8 {[%emt 0:00:08]} 23. Rxh7 {[%emt 0:00:03]} 1/2-1/2

[Event "Int SVK-ch Open 2020"]
[Site "Drienica"]
[Date "2020.08.09"]
[Round "3.16"]
[White "Recky, Norbert"]
[Black "Kucik, Patrik"]
[Result "1/2-1/2"]
[ECO "C74"]
[WhiteElo "1811"]
[BlackElo "1572"]
[Annotator "NA"]
[PlyCount "45"]
[EventDate "2020.08.07"]
[EventType "swiss"]
[EventCountry "SVK"]
[SourceTitle "playchess.com"]
[Source "ChessBase"]
[SourceQuality "1"]
[TimeControl "40/5400+30:1800+30"]

1. e4 {[%emt 0:00:00]} e5 {[%emt 0:00:00]} 2. Nf3 {[%emt 0:00:00]} Nc6 {[%emt 0:00:07]} 3. Bb5 {[%emt 0:00:00]} a6 {[%emt 0:00:30]} 4. Ba4 {[%emt 0:00:00]} d6 {[%emt 0:00:38]} 5. c3 {[%emt 0:00:41]} Be7 {[%emt 0:06:31]} 6. O-O {[%emt 0:00:16]} Nf6 {[%emt 0:00:18]} 7. d3 {[%emt 0:00:12]} O-O {[%emt 0:00:29]} 8. Re1 {[%emt 0:00:19]} b5 {[%emt 0:00:46]} 9. Bc2 {[%emt 0:00:17]} Bb7 {[%emt 0:03:12]} 10. Nbd2 {[%emt 0:03:23]} Na5 {[%emt 0:04:18]} 11. Nf1 {[%emt 0:00:55]} c5 {[%emt 0:01:26]} 12. Ng3 {[%emt 0:01:04]} Re8 {[%emt 0:10:08]} 13. Nf5 {[%emt 0:01:40]} Bf8 {[%emt 0:01:28]} 14. Bg5 {[%emt 0:00:13]} g6 {[%emt 0:03:02]} 15. Nh6+ {[%emt 0:05:32]} Bxh6 {[%emt 0:04:14]} 16. Bxh6 {[%emt 0:01:12]} Nh5 {[%emt 0:07:35]} 17. b4 {[%emt 0:03:04]} cxb4 {[%emt 0:03:44]} 18. cxb4 {[%emt 0:00:42]} Nc6 {[%emt 0:02:24]} 19. Qd2 {[%emt 0:00:44]} Bc8 {[%emt 0:02:06]} 20. a4 {[%emt 0:02:56]} Bg4 {[%emt 0:02:45]} 21. Ng5 {[%emt 0:03:55]} Nd4 {[%emt 0:02:25]} 22. f3 {[%emt 0:08:35]} Be6 {[%emt 0:06:49]} 23. Nxe6 {[%emt 0:05:33]} 1/2-1/2

[Event "Int SVK-ch Open 2020"]
[Site "Drienica"]
[Date "2020.08.09"]
[Round "3.17"]
[White "Steiniger, Florian"]
[Black "Ondo, Tomas"]
[Result "1/2-1/2"]
[ECO "C26"]
[WhiteElo "1889"]
[BlackElo "2065"]
[Annotator "ChessBase"]
[PlyCount "26"]
[EventDate "2020.08.07"]
[EventType "swiss"]
[EventCountry "SVK"]
[SourceTitle "playchess.com"]
[Source "ChessBase"]
[SourceQuality "1"]
[TimeControl "40/5400+30:1800+30"]

1. e4 {[%emt 0:00:00]} e5 {[%emt 0:00:00]} 2. Nc3 {[%emt 0:00:00]} Nf6 {[%emt 0:00:17]} 3. g3 {[%emt 0:00:00]} Nc6 {[%emt 0:00:36]} 4. Bg2 {[%emt 0:00:08]} Be7 {[%emt 0:01:35]} 5. Nge2 {[%emt 0:01:23]} d6 {[%emt 0:00:37]} 6. Nd5 {[%emt 0:02:41]} Nxd5 {[%emt 0:01:25]} 7. exd5 {[%emt 0:00:08]} Nb8 {[%emt 0:00:20]} 8. d4 {[%emt 0:02:18]} Nd7 {[%emt 0:01:15]} 9. O-O {[%emt 0:01:40]} O-O {[%emt 0:00:24]} 10. dxe5 {[%emt 0:04:22]} Nxe5 {[%emt 0:00:47]} 11. h3 {[%emt 0:02:12]} Re8 {[%emt 0:10:55]} 12. Rb1 {[%emt 0:04:23]} Bf6 {[%emt 0:04:39]} 13. Nd4 {[%emt 0:05:40]} a6 {[%emt 0:19:50]} 1/2-1/2

[Event "Int SVK-ch Open 2020"]
[Site "Drienica"]
[Date "2020.08.09"]
[Round "3.17"]
[White "Tomcikova, Zuzana"]
[Black "Kubikova, Nina"]
[Result "1-0"]
[ECO "C58"]
[WhiteElo "1776"]
[BlackElo "1256"]
[Annotator "NA RC"]
[PlyCount "97"]
[EventDate "2020.08.07"]
[EventType "swiss"]
[EventCountry "SVK"]
[SourceTitle "playchess.com"]
[Source "ChessBase"]
[SourceQuality "1"]
[TimeControl "40/5400+30:1800+30"]

1. e4 {[%emt 0:00:00]} e5 {[%emt 0:00:00]} 2. Nf3 {[%emt 0:00:00]} Nc6 {[%emt 0:00:00]} 3. Bc4 {[%emt 0:00:00]} Nf6 {[%emt 0:00:00]} 4. Ng5 {[%emt 0:00:01]} d5 {[%emt 0:00:07]} 5. exd5 {[%emt 0:00:07]} Na5 {[%emt 0:00:08]} 6. Bb5+ {[%emt 0:00:07]} Bd7 {[%emt 0:00:12]} 7. Qe2 {[%emt 0:00:12]} Be7 {[%emt 0:00:25]} 8. Nc3 {[%emt 0:01:37]} Bxb5 {[%emt 0:00:37]} 9. Qxb5+ {[%emt 0:00:51]} c6 {[%emt 0:00:10]} 10. dxc6 {[%emt 0:00:37]} Nxc6 {[%emt 0:00:12]} 11. O-O {[%emt 0:20:16]} O-O {[%emt 0:01:47]} 12. Qe2 {[%emt 0:15:27]} Nd4 {[%emt 0:06:09]} 13. Qd1 {[%emt 0:00:15]} Rc8 {[%emt 0:06:31]} 14. d3 {[%emt 0:05:31]} Nd5 {[%emt 0:08:01]} 15. Nxd5 {[%emt 0:02:40]} Qxd5 {[%emt 0:03:50]} 16. c3 {[%emt 0:01:56]} Nf5 {[%emt 0:03:27]} 17. Qf3 {[%emt 0:03:28]} Qxf3 {[%emt 0:00:53]} 18. Nxf3 {[%emt 0:00:09]} Rfd8 {[%emt 0:01:57]} 19. Nxe5 {[%emt 0:03:15]} f6 {[%emt 0:00:19]} 20. Ng4 {[%emt 0:04:07]} Rxd3 {[%emt 0:00:59]} 21. Ne3 {[%emt 0:00:37]} Nh6 {[%emt 0:01:57]} 22. Nc2 {[%emt 0:04:03]} Nf5 {[%emt 0:06:07]} 23. Ne3 {[%emt 0:03:34]} Nh6 {[%emt 0:00:23]} 24. Rd1 {[%emt 0:02:53]} Rcd8 {[%emt 0:00:40]} 25. Rxd3 {[%emt 0:00:13]} Rxd3 {[%emt 0:00:07]} 26. Kf1 {[%emt 0:00:26]} Bc5 {[%emt 0:02:22]} 27. h3 {[%emt 0:02:30]} Kf8 {[%emt 0:03:31]} 28. a4 {[%emt 0:03:22]} b6 {[%emt 0:10:50]} 29. Ke2 {[%emt 0:01:00]} Rd7 {[%emt 0:00:27]} 30. b4 {[%emt 0:05:29]} Bd6 {[%emt 0:02:05]} 31. Nc4 {[%emt 0:00:55]} Nf5 {[%emt 0:02:22]} 32. g4 {[%emt 0:00:51]} Ne7 {[%emt 0:03:04]} 33. Nxd6 {[%emt 0:09:18]} Rxd6 {[%emt 0:00:09]} 34. a5 {[%emt 0:01:34]} b5 {[%emt 0:01:15]} 35. Be3 {[%emt 0:00:15]} a6 {[%emt 0:00:23]} 36. Bc5 {[%emt 0:01:15]} Rc6 {[%emt 0:00:53]} 37. Kf3 {[%emt 0:02:59]} Kf7 {[%emt 0:00:59]} 38. Rd1 {[%emt 0:01:04]} Rc7 {[%emt 0:02:58]} 39. Rd6 {[%emt 0:01:47]} Nc6 {[%emt 0:01:34]} 40. Kg3 {[%emt 0:02:37]} Ke8 {[%emt 0:02:07]} 41. f4 {[%emt 0:31:55]} Kf7 {[%emt 0:32:06]} 42. h4 {[%emt 0:00:00]} Nb8 {[%emt 0:00:00]} 43. h5 {[%emt 0:00:00]} Nd7 {[%emt 0:00:00]} 44. Bd4 {[%emt 0:00:00]} Nb8 {[%emt 0:00:00]} 45. Rb6 {[%emt 0:00:00]} Rc8 {[%emt 0:00:00]} 46. g5 {[%emt 0:00:00]} fxg5 {[%emt 0:00:00]} 47. fxg5 {[%emt 0:00:00]} g6 {[%emt 0:00:00]} 48. hxg6+ {[%emt 0:00:00]} hxg6 {[%emt 0:00:00]} 49. Rf6+ {[%emt 0:00:00]} 1-0

[Event "Int SVK-ch Open 2020"]
[Site "Drienica"]
[Date "2020.08.09"]
[Round "3.18"]
[White "Kapolkova, Greta"]
[Black "Socko, Weronika"]
[Result "0-1"]
[ECO "B13"]
[WhiteElo "1510"]
[BlackElo "1741"]
[Annotator "NA"]
[PlyCount "82"]
[EventDate "2020.08.07"]
[EventType "swiss"]
[EventCountry "SVK"]
[SourceTitle "playchess.com"]
[Source "ChessBase"]
[SourceQuality "1"]
[TimeControl "40/5400+30:1800+30"]

1. e4 {[%emt 0:00:00]} c6 {[%emt 0:00:00]} 2. d4 {[%emt 0:00:00]} d5 {[%emt 0:00:00]} 3. exd5 {[%emt 0:00:18]} cxd5 {[%emt 0:00:00]} 4. Bd3 {[%emt 0:00:28]} Nf6 {[%emt 0:00:43]} 5. h3 {[%emt 0:00:26]} g6 {[%emt 0:02:23]} 6. Nf3 {[%emt 0:00:58]} Bg7 {[%emt 0:00:40]} 7. Bf4 {[%emt 0:01:28]} Nc6 {[%emt 0:01:06]} 8. c3 {[%emt 0:01:16]} O-O {[%emt 0:02:13]} 9. O-O {[%emt 0:00:38]} a6 {[%emt 0:06:04]} 10. Nbd2 {[%emt 0:02:19]} Bd7 {[%emt 0:02:19]} 11. Qb3 {[%emt 0:02:01]} b5 {[%emt 0:04:03]} 12. Rfe1 {[%emt 0:01:19]} Re8 {[%emt 0:01:45]} 13. Qc2 {[%emt 0:01:57]} Rc8 {[%emt 0:02:48]} 14. a3 {[%emt 0:01:39]} Qb6 {[%emt 0:08:25]} 15. Nb3 {[%emt 0:00:53]} Nd8 {[%emt 0:04:29]} 16. Ne5 {[%emt 0:02:00]} Ne6 {[%emt 0:03:13]} 17. Bg3 {[%emt 0:01:36]} Red8 {[%emt 0:03:02]} 18. Rad1 {[%emt 0:01:32]} a5 {[%emt 0:08:22]} 19. Qe2 {[%emt 0:03:40]} b4 {[%emt 0:02:20]} 20. axb4 {[%emt 0:06:55]} axb4 {[%emt 0:01:59]} 21. Nxd7 {[%emt 0:02:09]} Rxd7 {[%emt 0:00:38]} 22. Bb5 {[%emt 0:02:00]} Ra7 {[%emt 0:04:54]} 23. c4 {[%emt 0:02:07]} Nh5 {[%emt 0:07:10]} 24. c5 {[%emt 0:04:09]} Qd8 {[%emt 0:03:57]} 25. Bh2 {[%emt 0:03:40]} Nf6 {[%emt 0:03:06]} 26. f3 {[%emt 0:01:54]} Ne8 {[%emt 0:01:56]} 27. Qd2 {[%emt 0:00:59]} N8c7 {[%emt 0:01:12]} 28. Bf1 {[%emt 0:00:54]} Ra4 {[%emt 0:01:54]} 29. Ra1 {[%emt 0:02:19]} Rca8 {[%emt 0:00:02]} 30. Rxa4 {[%emt 0:00:28]} Rxa4 {[%emt 0:00:02]} 31. Be5 {[%emt 0:03:02]} f6 {[%emt 0:07:59]} 32. Bg3 {[%emt 0:01:05]} Kf7 {[%emt 0:00:47]} 33. Ra1 {[%emt 0:00:55]} Rxa1 {[%emt 0:00:37]} 34. Nxa1 {[%emt 0:00:08]} f5 {[%emt 0:01:43]} 35. Bf2 {[%emt 0:00:52]} Qa8 {[%emt 0:01:43]} 36. Nc2 {[%emt 0:01:11]} b3 {[%emt 0:00:26]} 37. Na3 {[%emt 0:01:48]} Qa4 {[%emt 0:00:39]} 38. Nb1 {[%emt 0:03:45]} Nxd4 {[%emt 0:01:01]} 39. Nc3 {[%emt 0:04:14]} Qb4 {[%emt 0:00:45]} 40. Kh1 {[%emt 0:09:40]} Qxc5 {[%emt 0:04:28]} 41. Ne2 {[%emt 0:31:15]} Qc2 {[%emt 0:31:52]} 0-1

[Event "Int SVK-ch Open 2020"]
[Site "Drienica"]
[Date "2020.08.09"]
[Round "3.19"]
[White "Verbovsky, Michal"]
[Black "Marsina, Stefan"]
[Result "1-0"]
[ECO "C02"]
[WhiteElo "2113"]
[BlackElo "1854"]
[Annotator "ChessBase"]
[PlyCount "99"]
[EventDate "2020.08.07"]
[EventType "swiss"]
[EventCountry "SVK"]
[SourceTitle "playchess.com"]
[Source "ChessBase"]
[SourceQuality "1"]
[TimeControl "40/5400+30:1800+30"]

1. e4 {[%emt 0:00:00]} e6 {[%emt 0:00:00]} 2. d4 {[%emt 0:00:00]} d5 {[%emt 0:00:00]} 3. e5 {[%emt 0:00:19]} c5 {[%emt 0:00:45]} 4. c3 {[%emt 0:00:13]} Qb6 {[%emt 0:04:03]} 5. Nf3 {[%emt 0:00:46]} Bd7 {[%emt 0:00:51]} 6. Be2 {[%emt 0:01:46]} Bb5 {[%emt 0:02:09]} 7. O-O {[%emt 0:01:55]} Bxe2 {[%emt 0:12:13]} 8. Qxe2 {[%emt 0:00:09]} cxd4 {[%emt 0:02:40]} 9. cxd4 {[%emt 0:00:58]} Ne7 {[%emt 0:04:13]} 10. Nc3 {[%emt 0:03:25]} Nf5 {[%emt 0:03:15]} 11. Be3 {[%emt 0:15:04]} Be7 {[%emt 0:03:33]} 12. Rfc1 {[%emt 0:02:16]} Nc6 {[%emt 0:09:16]} 13. a3 {[%emt 0:03:42]} Nxe3 {[%emt 0:18:12]} 14. fxe3 {[%emt 0:00:15]} O-O {[%emt 0:09:00]} 15. b4 {[%emt 0:03:08]} Rfc8 {[%emt 0:03:46]} 16. Na4 {[%emt 0:01:33]} Qd8 {[%emt 0:00:12]} 17. Rc2 {[%emt 0:05:26]} f6 {[%emt 0:02:42]} 18. Rd1 {[%emt 0:11:35]} fxe5 {[%emt 0:05:20]} 19. dxe5 {[%emt 0:00:26]} b6 {[%emt 0:02:17]} 20. e4 {[%emt 0:06:34]} Qd7 {[%emt 0:04:20]} 21. exd5 {[%emt 0:01:09]} exd5 {[%emt 0:03:13]} 22. Nc3 {[%emt 0:01:18]} d4 {[%emt 0:01:13]} 23. Nb5 {[%emt 0:02:02]} Qf5 {[%emt 0:03:46]} 24. Nbxd4 {[%emt 0:02:42]} Nxd4 {[%emt 0:00:29]} 25. Rxc8+ {[%emt 0:00:24]} Rxc8 {[%emt 0:00:18]} 26. Nxd4 {[%emt 0:00:16]} Qf4 {[%emt 0:01:14]} 27. g3 {[%emt 0:03:02]} Qh6 {[%emt 0:00:36]} 28. Nf5 {[%emt 0:16:36]} Qg5 {[%emt 0:01:20]} 29. Qe4 {[%emt 0:08:32]} g6 {[%emt 0:02:14]} 30. Nd6 {[%emt 0:04:18]} Rc1 {[%emt 0:00:20]} 31. Qd5+ {[%emt 0:02:44]} Kg7 {[%emt 0:00:19]} 32. Rxc1 {[%emt 0:01:16]} Qxc1+ {[%emt 0:00:02]} 33. Kg2 {[%emt 0:00:10]} Qg5 {[%emt 0:01:13]} 34. Qf7+ {[%emt 0:00:50]} Kh6 {[%emt 0:00:13]} 35. Qf4 {[%emt 0:00:24]} Kg7 {[%emt 0:00:34]} 36. Qxg5 {[%emt 0:00:28]} Bxg5 {[%emt 0:00:03]} 37. Nc8 {[%emt 0:00:21]} Bc1 {[%emt 0:00:28]} 38. a4 {[%emt 0:00:42]} Bb2 {[%emt 0:00:25]} 39. e6 {[%emt 0:01:09]} a6 {[%emt 0:00:28]} 40. Nxb6 {[%emt 0:00:39]} Kf6 {[%emt 0:02:08]} 41. Nd5+ {[%emt 0:02:00]} Kxe6 {[%emt 0:00:11]} 42. Nc7+ {[%emt 0:00:12]} Kd6 {[%emt 0:00:50]} 43. Nxa6 {[%emt 0:00:10]} Ba3 {[%emt 0:04:14]} 44. b5 {[%emt 0:01:33]} Kd7 {[%emt 0:00:31]} 45. Kf3 {[%emt 0:01:49]} Kd6 {[%emt 0:09:46]} 46. Ke4 {[%emt 0:00:04]} h5 {[%emt 0:00:30]} 47. h3 {[%emt 0:00:20]} Kd7 {[%emt 0:00:59]} 48. Kd5 {[%emt 0:00:37]} Bd6 {[%emt 0:00:36]} 49. g4 {[%emt 0:00:13]} hxg4 {[%emt 0:00:35]} 50. hxg4 {[%emt 0:00:06]} 1-0